{"text_format":"3","workbook":"xlsx","n_sheets":6,"sheets":["Aloitus","Koontinäyttö","Menot ja tulot","Budjettiraportti","Tietoluettelot","Luokan Pivot-taulukko"],"not_rendered":{"charts":3,"defined_names":23,"pivot_tables":2},"read":"whole","date_system":"1900"}

{"sheet":"Aloitus","index":0,"n_rows":8,"n_cols":2,"rows_kept":8}
[null,"Tietoja mallista"]
[null,"Tällä mallilla voit luoda puolikuukausittainen kotibudjetti."]
[null,"Koontinäyttö-laskentataulukko sisältää kaavioita kuukausittaisille ja vuosittaisille kokonaissummille sekä taulukon kahden viikon tuloille ja menoille."]
[null,"Lisää luokkia Tietoluettelot-laskentataulukkoon ja syötä arvot Tulot ja menot-laskentataulukkoon."]
[null,"Päivitä Pivot-taulukko Budjettiraportti-laskentataulukossa."]
[null,"Muistiinpano:"]
[null,"Kaikkien laskentataulukkojen sarakkeessa A annetaan lisäohjeita. Tämä teksti on piilotettu tarkoituksella. Jos haluat poistaa tekstin, valitse sarake A ja valitse sitten POISTA. "]
[null,"Jos haluat lisätietoja taulukosta, paina taulukossa VAIHTO ja sitten F10, valitse TAULUKKO-vaihtoehto ja valitse sitten VAIHTOEHTOINEN TEKSTI. Jos kyseessä on Pivot-taulukko, paina taulukossa VAIHTO ja sitten F10, valitse PIVOT-TAULUKON ASETUKSET ja valitse sitten VAIHTOEHTOINEN TEKSTI -välilehti."]

{"sheet":"Koontinäyttö","index":1,"n_rows":12,"n_cols":15,"rows_kept":12,"merged":[[0,1,0,13],[1,2,1,7]]}
["Luo tässä laskentataulukossa raporttinäkymät kuukausittaisille ja vuosittaisille kokonaissummille sekä kahden viikon tuloille ja menoille. Tämän sarakkeen soluissa on hyödyllisiä ohjeita tämän laskentataulukon käytöstä. Tämän työkirjan otsikko on solussa oikealla ja laskentataulukon otsikko solussa O1.","Puolikuukausittainen kotibudjetti",{"$nulls":12},"KOONTINÄYTTÖ"]
["Valitse solun C2 liukusäädin, jos haluat muuttaa oikealla olevassa solussa olevaa kuukautta. Jos haluat muuttaa solussa I2 olevaa vuotta, valitse solun J2 liukusäädin.",{"$f":"CHOOSE(KuukaudenNumero,\"TAMMIKUU\",\"HELMIKUU\",\"MAALISKUU\",\"HUHTIKUU\",\"TOUKOKUU\",\"KESÄKUU\",\"HEINÄKUU\",\"ELOKUU\",\"SYYSKUU\",\"LOKAKUU\",\"MARRASKUU\",\"JOULUKUU\")","v":"JOULUKUU"},12,{"$nulls":5},2022]
["Kuukauden kokonaissummat -otsikko on solussa oikealla ja Vuoden kokonaissummat -otsikko solussa I3.","KUUKAUDEN KOKONAISSUMMAT",{"$nulls":6},"VUOSITTAISET KOKONAISSUMMAT"]
["Solussa C4 on palkkikaavio, jossa verrataan kuukauden kokonaistuloja kuukauden kokonaismenoihin. Solussa J4 on palkkikaavio, jossa verrataan vuoden kokonaistuloja vuoden kokonaismenoihin. Seuraava ohje on solussa A8.","TULOT",null,{"$f":"KuukausittaisetMenotYhteensä","v":{"v":0,"d":"0 €"}},{"$nulls":4},"TULOT",null,null,{"$f":"VuosittaisetMenotYhteensä","v":{"v":10742,"d":"10,742 €"}}]
[null,"MENOT",null,{"$f":"KuukausittaisetTulotYhteensä","v":{"v":0,"d":"0 €"}},{"$nulls":4},"MENOT",null,null,{"$f":"VuosittaisetTulotYhteensä","v":{"v":13200,"d":"13,200 €"}}]
[]
[]
["Raporttinäkymät-taulukko päivittyy automaattisesti oikealla olevasta solusta alkaen.","Luokka","TAMMIKUU","HELMIKUU","MAALISKUU","HUHTIKUU","TOUKOKUU","KESÄKUU","HEINÄKUU","ELOKUU","SYYSKUU","LOKAKUU","MARRASKUU","JOULUKUU","Sparkline"]
[null,"Tulot 1–15",{"$f":"SUMIFS(Tulot[SUMMA],Tulot[PÄIVÄMÄÄRÄ],\"<=\"&PvPuoliväli,Tulot[PÄIVÄMÄÄRÄ],\">=\"&PvAlku)","v":{"v":0,"d":"0.00 €"}},{"$f":"SUMIFS(Tulot[SUMMA],Tulot[PÄIVÄMÄÄRÄ],\"<=\"&PvPuoliväli,Tulot[PÄIVÄMÄÄRÄ],\">=\"&PvAlku)","v":{"v":0,"d":"0.00 €"}},{"$f":"SUMIFS(Tulot[SUMMA],Tulot[PÄIVÄMÄÄRÄ],\"<=\"&PvPuoliväli,Tulot[PÄIVÄMÄÄRÄ],\">=\"&PvAlku)","v":{"v":1300,"d":"1,300.00 €"}},{"$f":"SUMIFS(Tulot[SUMMA],Tulot[PÄIVÄMÄÄRÄ],\"<=\"&PvPuoliväli,Tulot[PÄIVÄMÄÄRÄ],\">=\"&PvAlku)","v":{"v":2600,"d":"2,600.00 €"}},{"$f":"SUMIFS(Tulot[SUMMA],Tulot[PÄIVÄMÄÄRÄ],\"<=\"&PvPuoliväli,Tulot[PÄIVÄMÄÄRÄ],\">=\"&PvAlku)","v":{"v":2600,"d":"2,600.00 €"}},{"$f":"SUMIFS(Tulot[SUMMA],Tulot[PÄIVÄMÄÄRÄ],\"<=\"&PvPuoliväli,Tulot[PÄIVÄMÄÄRÄ],\">=\"&PvAlku)","v":{"v":0,"d":"0.00 €"}},{"$f":"SUMIFS(Tulot[SUMMA],Tulot[PÄIVÄMÄÄRÄ],\"<=\"&PvPuoliväli,Tulot[PÄIVÄMÄÄRÄ],\">=\"&PvAlku)","v":{"v":0,"d":"0.00 €"}},{"$f":"SUMIFS(Tulot[SUMMA],Tulot[PÄIVÄMÄÄRÄ],\"<=\"&PvPuoliväli,Tulot[PÄIVÄMÄÄRÄ],\">=\"&PvAlku)","v":{"v":0,"d":"0.00 €"}},{"$f":"SUMIFS(Tulot[SUMMA],Tulot[PÄIVÄMÄÄRÄ],\"<=\"&PvPuoliväli,Tulot[PÄIVÄMÄÄRÄ],\">=\"&PvAlku)","v":{"v":0,"d":"0.00 €"}},{"$f":"SUMIFS(Tulot[SUMMA],Tulot[PÄIVÄMÄÄRÄ],\"<=\"&PvPuoliväli,Tulot[PÄIVÄMÄÄRÄ],\">=\"&PvAlku)","v":{"v":0,"d":"0.00 €"}},{"$f":"SUMIFS(Tulot[SUMMA],Tulot[PÄIVÄMÄÄRÄ],\"<=\"&PvPuoliväli,Tulot[PÄIVÄMÄÄRÄ],\">=\"&PvAlku)","v":{"v":0,"d":"0.00 €"}},{"$f":"SUMIFS(Tulot[SUMMA],Tulot[PÄIVÄMÄÄRÄ],\"<=\"&PvPuoliväli,Tulot[PÄIVÄMÄÄRÄ],\">=\"&PvAlku)","v":{"v":0,"d":"0.00 €"}}]
[null,"Tulot 16– kuukauden loppu",{"$f":"SUMIFS(Tulot[SUMMA],Tulot[PÄIVÄMÄÄRÄ],\"<=\"&PvLoppu,Tulot[PÄIVÄMÄÄRÄ],\">=\"&PvPuoliväli+1)","v":{"v":0,"d":"0.00 €"}},{"$f":"SUMIFS(Tulot[SUMMA],Tulot[PÄIVÄMÄÄRÄ],\"<=\"&PvLoppu,Tulot[PÄIVÄMÄÄRÄ],\">=\"&PvPuoliväli+1)","v":{"v":0,"d":"0.00 €"}},{"$f":"SUMIFS(Tulot[SUMMA],Tulot[PÄIVÄMÄÄRÄ],\"<=\"&PvLoppu,Tulot[PÄIVÄMÄÄRÄ],\">=\"&PvPuoliväli+1)","v":{"v":3100,"d":"3,100.00 €"}},{"$f":"SUMIFS(Tulot[SUMMA],Tulot[PÄIVÄMÄÄRÄ],\"<=\"&PvLoppu,Tulot[PÄIVÄMÄÄRÄ],\">=\"&PvPuoliväli+1)","v":{"v":3100,"d":"3,100.00 €"}},{"$f":"SUMIFS(Tulot[SUMMA],Tulot[PÄIVÄMÄÄRÄ],\"<=\"&PvLoppu,Tulot[PÄIVÄMÄÄRÄ],\">=\"&PvPuoliväli+1)","v":{"v":500,"d":"500.00 €"}},{"$f":"SUMIFS(Tulot[SUMMA],Tulot[PÄIVÄMÄÄRÄ],\"<=\"&PvLoppu,Tulot[PÄIVÄMÄÄRÄ],\">=\"&PvPuoliväli+1)","v":{"v":0,"d":"0.00 €"}},{"$f":"SUMIFS(Tulot[SUMMA],Tulot[PÄIVÄMÄÄRÄ],\"<=\"&PvLoppu,Tulot[PÄIVÄMÄÄRÄ],\">=\"&PvPuoliväli+1)","v":{"v":0,"d":"0.00 €"}},{"$f":"SUMIFS(Tulot[SUMMA],Tulot[PÄIVÄMÄÄRÄ],\"<=\"&PvLoppu,Tulot[PÄIVÄMÄÄRÄ],\">=\"&PvPuoliväli+1)","v":{"v":0,"d":"0.00 €"}},{"$f":"SUMIFS(Tulot[SUMMA],Tulot[PÄIVÄMÄÄRÄ],\"<=\"&PvLoppu,Tulot[PÄIVÄMÄÄRÄ],\">=\"&PvPuoliväli+1)","v":{"v":0,"d":"0.00 €"}},{"$f":"SUMIFS(Tulot[SUMMA],Tulot[PÄIVÄMÄÄRÄ],\"<=\"&PvLoppu,Tulot[PÄIVÄMÄÄRÄ],\">=\"&PvPuoliväli+1)","v":{"v":0,"d":"0.00 €"}},{"$f":"SUMIFS(Tulot[SUMMA],Tulot[PÄIVÄMÄÄRÄ],\"<=\"&PvLoppu,Tulot[PÄIVÄMÄÄRÄ],\">=\"&PvPuoliväli+1)","v":{"v":0,"d":"0.00 €"}},{"$f":"SUMIFS(Tulot[SUMMA],Tulot[PÄIVÄMÄÄRÄ],\"<=\"&PvLoppu,Tulot[PÄIVÄMÄÄRÄ],\">=\"&PvPuoliväli+1)","v":{"v":0,"d":"0.00 €"}}]
[null,"Menot 1–15",{"$f":"SUMIFS(Menot[SUMMA],Menot[PÄIVÄMÄÄRÄ],\"<=\"&PvPuoliväli+1,Menot[PÄIVÄMÄÄRÄ],\">=\"&PvAlku)","v":{"v":0,"d":"0.00 €"}},{"$f":"SUMIFS(Menot[SUMMA],Menot[PÄIVÄMÄÄRÄ],\"<=\"&PvPuoliväli+1,Menot[PÄIVÄMÄÄRÄ],\">=\"&PvAlku)","v":{"v":0,"d":"0.00 €"}},{"$f":"SUMIFS(Menot[SUMMA],Menot[PÄIVÄMÄÄRÄ],\"<=\"&PvPuoliväli+1,Menot[PÄIVÄMÄÄRÄ],\">=\"&PvAlku)","v":{"v":1225,"d":"1,225.00 €"}},{"$f":"SUMIFS(Menot[SUMMA],Menot[PÄIVÄMÄÄRÄ],\"<=\"&PvPuoliväli+1,Menot[PÄIVÄMÄÄRÄ],\">=\"&PvAlku)","v":{"v":5150,"d":"5,150.00 €"}},{"$f":"SUMIFS(Menot[SUMMA],Menot[PÄIVÄMÄÄRÄ],\"<=\"&PvPuoliväli+1,Menot[PÄIVÄMÄÄRÄ],\">=\"&PvAlku)","v":{"v":2792,"d":"2,792.00 €"}},{"$f":"SUMIFS(Menot[SUMMA],Menot[PÄIVÄMÄÄRÄ],\"<=\"&PvPuoliväli+1,Menot[PÄIVÄMÄÄRÄ],\">=\"&PvAlku)","v":{"v":0,"d":"0.00 €"}},{"$f":"SUMIFS(Menot[SUMMA],Menot[PÄIVÄMÄÄRÄ],\"<=\"&PvPuoliväli+1,Menot[PÄIVÄMÄÄRÄ],\">=\"&PvAlku)","v":{"v":0,"d":"0.00 €"}},{"$f":"SUMIFS(Menot[SUMMA],Menot[PÄIVÄMÄÄRÄ],\"<=\"&PvPuoliväli+1,Menot[PÄIVÄMÄÄRÄ],\">=\"&PvAlku)","v":{"v":0,"d":"0.00 €"}},{"$f":"SUMIFS(Menot[SUMMA],Menot[PÄIVÄMÄÄRÄ],\"<=\"&PvPuoliväli+1,Menot[PÄIVÄMÄÄRÄ],\">=\"&PvAlku)","v":{"v":0,"d":"0.00 €"}},{"$f":"SUMIFS(Menot[SUMMA],Menot[PÄIVÄMÄÄRÄ],\"<=\"&PvPuoliväli+1,Menot[PÄIVÄMÄÄRÄ],\">=\"&PvAlku)","v":{"v":0,"d":"0.00 €"}},{"$f":"SUMIFS(Menot[SUMMA],Menot[PÄIVÄMÄÄRÄ],\"<=\"&PvPuoliväli+1,Menot[PÄIVÄMÄÄRÄ],\">=\"&PvAlku)","v":{"v":0,"d":"0.00 €"}},{"$f":"SUMIFS(Menot[SUMMA],Menot[PÄIVÄMÄÄRÄ],\"<=\"&PvPuoliväli+1,Menot[PÄIVÄMÄÄRÄ],\">=\"&PvAlku)","v":{"v":0,"d":"0.00 €"}}]
[null,"Menot 16– kuukauden loppu",{"$f":"SUMIFS(Menot[SUMMA],Menot[PÄIVÄMÄÄRÄ],\"<=\"&PvLoppu,Menot[PÄIVÄMÄÄRÄ],\">=\"&PvPuoliväli+1)","v":{"v":0,"d":"0.00 €"}},{"$f":"SUMIFS(Menot[SUMMA],Menot[PÄIVÄMÄÄRÄ],\"<=\"&PvLoppu,Menot[PÄIVÄMÄÄRÄ],\">=\"&PvPuoliväli+1)","v":{"v":0,"d":"0.00 €"}},{"$f":"SUMIFS(Menot[SUMMA],Menot[PÄIVÄMÄÄRÄ],\"<=\"&PvLoppu,Menot[PÄIVÄMÄÄRÄ],\">=\"&PvPuoliväli+1)","v":{"v":200,"d":"200.00 €"}},{"$f":"SUMIFS(Menot[SUMMA],Menot[PÄIVÄMÄÄRÄ],\"<=\"&PvLoppu,Menot[PÄIVÄMÄÄRÄ],\">=\"&PvPuoliväli+1)","v":{"v":875,"d":"875.00 €"}},{"$f":"SUMIFS(Menot[SUMMA],Menot[PÄIVÄMÄÄRÄ],\"<=\"&PvLoppu,Menot[PÄIVÄMÄÄRÄ],\">=\"&PvPuoliväli+1)","v":{"v":500,"d":"500.00 €"}},{"$f":"SUMIFS(Menot[SUMMA],Menot[PÄIVÄMÄÄRÄ],\"<=\"&PvLoppu,Menot[PÄIVÄMÄÄRÄ],\">=\"&PvPuoliväli+1)","v":{"v":0,"d":"0.00 €"}},{"$f":"SUMIFS(Menot[SUMMA],Menot[PÄIVÄMÄÄRÄ],\"<=\"&PvLoppu,Menot[PÄIVÄMÄÄRÄ],\">=\"&PvPuoliväli+1)","v":{"v":0,"d":"0.00 €"}},{"$f":"SUMIFS(Menot[SUMMA],Menot[PÄIVÄMÄÄRÄ],\"<=\"&PvLoppu,Menot[PÄIVÄMÄÄRÄ],\">=\"&PvPuoliväli+1)","v":{"v":0,"d":"0.00 €"}},{"$f":"SUMIFS(Menot[SUMMA],Menot[PÄIVÄMÄÄRÄ],\"<=\"&PvLoppu,Menot[PÄIVÄMÄÄRÄ],\">=\"&PvPuoliväli+1)","v":{"v":0,"d":"0.00 €"}},{"$f":"SUMIFS(Menot[SUMMA],Menot[PÄIVÄMÄÄRÄ],\"<=\"&PvLoppu,Menot[PÄIVÄMÄÄRÄ],\">=\"&PvPuoliväli+1)","v":{"v":0,"d":"0.00 €"}},{"$f":"SUMIFS(Menot[SUMMA],Menot[PÄIVÄMÄÄRÄ],\"<=\"&PvLoppu,Menot[PÄIVÄMÄÄRÄ],\">=\"&PvPuoliväli+1)","v":{"v":0,"d":"0.00 €"}},{"$f":"SUMIFS(Menot[SUMMA],Menot[PÄIVÄMÄÄRÄ],\"<=\"&PvLoppu,Menot[PÄIVÄMÄÄRÄ],\">=\"&PvPuoliväli+1)","v":{"v":0,"d":"0.00 €"}}]

{"sheet":"Menot ja tulot","index":2,"n_rows":36,"n_cols":9,"rows_kept":36,"merged":[[0,1,0,6],[0,7,0,8]]}
["Luo tähän laskentataulukkoon luettelo tuloista ja menoista. Tämän sarakkeen soluissa on hyödyllisiä ohjeita tämän laskentataulukon käytöstä. Tämän työkirjan otsikko on solussa oikealla ja laskentataulukon otsikko solussa H1.",{"$f":"Puoli_Kuukausittaisen_Koti_Budjetin_Otsikko","v":"Puolikuukausittainen kotibudjetti"},{"$nulls":5},"TULOT JA MENOT"]
["Tulot-otsikko on solussa oikealla ja Menot-selite solussa F2.","TULOT",{"$nulls":3},"MENOT"]
["Syötä tiedot Tulot-taulukkoon oikealla olevasta solusta alkaen ja Menot-taulukkoon solusta F3 alkaen.","PÄIVÄMÄÄRÄ","KUVAUS","SUMMA",null,"PÄIVÄMÄÄRÄ","LUOKKA","KUVAUS","SUMMA"]
[null,{"$f":"TODAY()","v":"2022-05-18"},"Bonus",{"v":500,"d":"500.00 €"},null,{"$f":"TODAY()","v":"2022-05-18"},"Terveydenhoito","Vakuutukset",{"v":500,"d":"500.00 €"}]
[null,{"$f":"TODAY()-14","v":"2022-05-04"},"Pekan palkka",{"v":1300,"d":"1,300.00 €"},null,{"$f":"TODAY()-7","v":"2022-05-11"},"Kotitalous","Asuntolaina",{"v":1000,"d":"1,000.00 €"}]
[null,{"$f":"TODAY()-14","v":"2022-05-04"},"Tiinan palkka",{"v":1300,"d":"1,300.00 €"},null,"2022-05-11","Kotitalous","Sähkö",{"v":100,"d":"100.00 €"}]
[null,{"$f":"TODAY()-28","v":"2022-04-20"},"Pekan palkka",{"v":1500,"d":"1,500.00 €"},null,"2022-05-11","Kotitalous","Vesi/jätevesi",{"v":50,"d":"50.00 €"}]
[null,{"$f":"TODAY()-28","v":"2022-04-20"},"Tiinan palkka",{"v":1600,"d":"1,600.00 €"},null,"2022-05-11","Kotitalous","Jätehuolto",{"v":25,"d":"25.00 €"}]
[null,{"$f":"TODAY()-42","v":"2022-04-06"},"Pekan palkka",{"v":1300,"d":"1,300.00 €"},null,"2022-05-11","Kotitalous","Matkapuhelin",{"v":100,"d":"100.00 €"}]
[null,{"$f":"TODAY()-42","v":"2022-04-06"},"Tiinan palkka",{"v":1300,"d":"1,300.00 €"},null,"2022-05-11","Kotitalous","Matkapuhelin",{"v":30,"d":"30.00 €"}]
[null,{"$f":"TODAY()-56","v":"2022-03-23"},"Pekan palkka",{"v":1500,"d":"1,500.00 €"},null,"2022-05-11","Kotitalous","Asuntolaina",{"v":50,"d":"50.00 €"}]
[null,{"$f":"TODAY()-56","v":"2022-03-23"},"Tiinan palkka",{"v":1600,"d":"1,600.00 €"},null,"2022-05-11","Kotitalous","Matkapuhelin",{"v":50,"d":"50.00 €"}]
[null,{"$f":"TODAY()-70","v":"2022-03-09"},"Pekan palkka",{"v":1300,"d":"1,300.00 €"},null,{"$f":"TODAY()-7","v":"2022-05-11"},"Kotitalous","Matkapuhelin",{"v":25,"d":"25.00 €"}]
[{"$nulls":5},{"$f":"TODAY()-8","v":"2022-05-10"},"Kotitalous","Sähkö",{"v":100,"d":"100.00 €"}]
[{"$nulls":5},{"$f":"TODAY()-9","v":"2022-05-09"},"Vapaa-aika","Elokuvat",{"v":37,"d":"37.00 €"}]
[{"$nulls":5},{"$f":"TODAY()-10","v":"2022-05-08"},"Ruoka","Ostoslista",{"v":350,"d":"350.00 €"}]
[{"$nulls":5},{"$f":"TODAY()-11","v":"2022-05-07"},"Ruoka","Ruokailu ulkona",{"v":75,"d":"75.00 €"}]
[{"$nulls":5},{"$f":"TODAY()-12","v":"2022-05-06"},"Lapset","Lounasraha",{"v":150,"d":"150.00 €"}]
[{"$nulls":5},{"$f":"TODAY()-13","v":"2022-05-05"},"Sijoitustilit","Säästöt",{"v":250,"d":"250.00 €"}]
[{"$nulls":5},{"$f":"TODAY()-14","v":"2022-05-04"},"Sijoitustilit","Sijoitustili",{"v":250,"d":"250.00 €"}]
[{"$nulls":5},{"$f":"TODAY()-15","v":"2022-05-03"},"Henkilökohtaiset","Kuntosali",{"v":100,"d":"100.00 €"}]
[{"$nulls":5},{"$f":"TODAY()-16","v":"2022-05-02"},"Lemmikkieläimet","Ruoka",{"v":50,"d":"50.00 €"}]
[{"$nulls":5},{"$f":"TODAY()-20","v":"2022-04-28"},"Lemmikkieläimet","Kampaaja",{"v":50,"d":"50.00 €"}]
[{"$nulls":5},{"$f":"TODAY()-20","v":"2022-04-28"},"Lemmikkieläimet","Muu",{"v":50,"d":"50.00 €"}]
[{"$nulls":5},{"$f":"TODAY()-25","v":"2022-04-23"},"Matkat","Auton 1 maksu ",{"v":300,"d":"300.00 €"}]
[{"$nulls":5},{"$f":"TODAY()-25","v":"2022-04-23"},"Matkat","Auton 2 maksu ",{"v":350,"d":"350.00 €"}]
[{"$nulls":5},{"$f":"TODAY()-25","v":"2022-04-23"},"Matkat","Autovakuutus",{"v":50,"d":"50.00 €"}]
[{"$nulls":5},{"$f":"TODAY()-30","v":"2022-04-18"},"Matkat","Polttoaine",{"v":50,"d":"50.00 €"}]
[{"$nulls":5},{"$f":"TODAY()-31","v":"2022-04-17"},"Matkat","Polttoaine",{"v":25,"d":"25.00 €"}]
[{"$nulls":5},{"$f":"TODAY()-42","v":"2022-04-06"},"Matkat","Auton 2 maksu ",{"v":150,"d":"150.00 €"}]
[{"$nulls":5},{"$f":"TODAY()-45","v":"2022-04-03"},"Kotitalous","Asuntolaina",{"v":5000,"d":"5,000.00 €"}]
[{"$nulls":5},{"$f":"TODAY()-50","v":"2022-03-29"},"Kotitalous","Sähkö",{"v":200,"d":"200.00 €"}]
[{"$nulls":5},{"$f":"TODAY()-65","v":"2022-03-14"},"Kotitalous","Matkapuhelin",{"v":100,"d":"100.00 €"}]
[{"$nulls":5},{"$f":"TODAY()-70","v":"2022-03-09"},"Kotitalous","Jätehuolto",{"v":50,"d":"50.00 €"}]
[{"$nulls":5},{"$f":"TODAY()-75","v":"2022-03-04"},"Kotitalous","Asuntolaina",{"v":1000,"d":"1,000.00 €"}]
[{"$nulls":5},{"$f":"TODAY()-78","v":"2022-03-01"},"Vapaa-aika","Elokuvat",{"v":75,"d":"75.00 €"}]

{"sheet":"Budjettiraportti","index":3,"n_rows":26,"n_cols":6,"rows_kept":26,"merged":[[0,1,0,4],[1,1,1,3],[4,3,4,5]]}
["Luo budjettiraportti tähän laskentataulukkoon. Tämän sarakkeen soluissa on hyödyllisiä ohjeita tämän laskentataulukon käytöstä. Työkirjan otsikko on solussa oikealla ja laskentataulukon otsikko solussa F1.",{"$f":"Puoli_Kuukausittaisen_Koti_Budjetin_Otsikko","v":"Puolikuukausittainen kotibudjetti"},{"$nulls":3},"BUDJETTIRAPORTTI"]
["Valitse vuodet, vuosineljännekset, kuukaudet tai päivät ja valitse oikealla olevan solun liukusäätimellä menojen Pivot-taulukko valitulle ajanjaksolle. Pivot-taulukon tietojen suodattamiseen käytettävä luokkaosittaja on solussa E2 ja kuvausosittaja solussa F2.","Suodatettava aikajana on tässä solussa.",null,null,"Tässä solussa on osittaja Pivot-taulukon tietojen suodattamiseen luokan mukaan.","Tässä solussa on osittaja Pivot-taulukon tietojen suodattamiseen kuvauksen mukaan."]
["Vihje on oikealla olevassa solussa.","Paina menojen Pivot-taulukossa Vaihto + F10 ja päivitä sitten taulukon tiedot valitsemalla Päivitä tai valitsemalla Analysoi-välilehdeltä Päivitä."]
["Menot-otsikko on solussa oikealla.","MENOT"]
["Pivot-taulukko, jossa menot näkyvät oikealla olevasta solusta alkaen. Luokan kokonaissummat -otsikko on solussa D4.","Riviotsikot","Summa  / SUMMA","LUOKAN SUMMAT"]
["Kunkin luokan kokonaissummaa vertaava ympyräkaavio on solussa D6.","Auton 1 maksu ",{"v":300,"d":"300.00 €"}]
[null,"Auton 2 maksu ",{"v":500,"d":"500.00 €"}]
[null,"Asuntolaina",{"v":7050,"d":"7,050.00 €"}]
[null,"Autovakuutus",{"v":50,"d":"50.00 €"}]
[null,"Elokuvat",{"v":112,"d":"112.00 €"}]
[null,"Jätehuolto",{"v":75,"d":"75.00 €"}]
[null,"Kampaaja",{"v":50,"d":"50.00 €"}]
[null,"Kuntosali",{"v":100,"d":"100.00 €"}]
[null,"Lounasraha",{"v":150,"d":"150.00 €"}]
[null,"Matkapuhelin",{"v":305,"d":"305.00 €"}]
[null,"Muu",{"v":50,"d":"50.00 €"}]
[null,"Polttoaine",{"v":75,"d":"75.00 €"}]
[null,"Ruoka",{"v":50,"d":"50.00 €"}]
[null,"Ruokailu ulkona",{"v":75,"d":"75.00 €"}]
[null,"Sijoitustili",{"v":250,"d":"250.00 €"}]
[null,"Sähkö",{"v":400,"d":"400.00 €"}]
[null,"Säästöt",{"v":250,"d":"250.00 €"}]
[null,"Vakuutukset",{"v":500,"d":"500.00 €"}]
[null,"Vesi/jätevesi",{"v":50,"d":"50.00 €"}]
[null,"Ostoslista",{"v":350,"d":"350.00 €"}]
[null,"Kaikki yhteensä",{"v":10742,"d":"10,742.00 €"}]

{"sheet":"Tietoluettelot","index":4,"n_rows":8,"n_cols":13,"rows_kept":8,"merged":[[0,1,0,11]]}
["Syötä tähän laskentataulukkoon Luokka-tietoja, joita käytetään avattavien luetteloiden täyttämiseen Menot ja tulot -laskentataulukon menotaulukossa. Päivitä luettelot muokkaamalla luokkien nimiä tai kuvauksia kunkin luokan alapuolella. Tämän sarakkeen soluissa on hyödyllisiä ohjeita tämän laskentataulukon käytöstä. Työkirjan otsikko on solussa oikealla ja laskentataulukon otsikko solussa M1.",{"$f":"Puoli_Kuukausittaisen_Koti_Budjetin_Otsikko","v":"Puolikuukausittainen kotibudjetti"},{"$nulls":10},"TIETOLUETTELOT"]
["Vihje on oikealla olevassa solussa.","MÄÄRITYS         Alla olevia Luokka-tietoja käytetään avattavien luetteloiden täyttämiseen Menot ja tulot -taulukon menotaulukossa. Päivitä luettelot muokkaamalla luokkien nimiä tai kuvauksia kunkin luokan alapuolella."]
["Syötä tai muokkaa luokkien nimet tai kuvaukset taulukon jokaisen luokan alapuolelle oikealla olevasta solusta alkaen.","Kotitalous","Vapaa-aika","Ruoka","Lahjat/lahjoitukset","Lapset","Sijoitustilit","Terveydenhoito","Muu","Henkilökohtaiset","Lemmikkieläimet","Verot/oikeuspalvelut","Matkat"]
[null,"Asuntolaina","Elokuvat","Ostoslista","Lahjoitukset 1","Vaatteet","Omat eläkejärjestelyt","Lääkäri","Muu","Vaatteet","Ruoka","Liittovaltio","Auton 1 maksu "]
[null,"Sähkö","Video/elokuvat","Ruokailu ulkona","Lahjoitukset 2","Lelut/pelit","Säästöt","Vakuutukset","Organisaatioiden jäsenmaksut","Kampaamo/kynnet","Tarvikkeet","Osavaltio","Auton 2 maksu "]
[null,"Vesi/jätevesi","Musiikki",null,"Lahjoitukset 3","Lounasraha","Tarkistukset",null,null,"Pesula","Terveydenhoito","Paikallinen","Autovakuutus"]
[null,"Jätehuolto","Konsertit/teatteri",null,"Lahja","Jäsenmaksut","Eläke",null,null,"Kuntosali","Kampaaja","Muu","Lisensiointi/rekisteröinti"]
[null,"Matkapuhelin","Urheilutapahtumat",null,null,"Koulutarvikkeet","Sijoitustili",null,null,"Shoppailu","Muu","Asianajaja","Polttoaine"]

{"sheet":"Luokan Pivot-taulukko","index":5,"n_rows":13,"n_cols":13,"rows_kept":13,"hidden":true}
[null,"Puolikuukausittainen kotibudjetti",{"$nulls":10},"LUOKAN PIVOT"]
[null,"Tämä Pivot-taulukko on budjettiraportin Luokan kokonaissummien PivotChart-kaavion tietolähde. "]
[null,"Riviotsikot","Summa  / SUMMA"]
[null,"Henkilökohtaiset",{"v":100,"d":"100 €"}]
[null,"Kotitalous",{"v":7880,"d":"7,880 €"}]
[null,"Lapset",{"v":150,"d":"150 €"}]
[null,"Lemmikkieläimet",{"v":150,"d":"150 €"}]
[null,"Matkat",{"v":925,"d":"925 €"}]
[null,"Ruoka",{"v":425,"d":"425 €"}]
[null,"Sijoitustilit",{"v":500,"d":"500 €"}]
[null,"Terveydenhoito",{"v":500,"d":"500 €"}]
[null,"Vapaa-aika",{"v":112,"d":"112 €"}]
[null,"Kaikki yhteensä",{"v":10742,"d":"10,742 €"}]